bitfinex-derivatives/quotes_BTCF0:USTF0_20250720
["timestamp","ask_amount","ask_price","bid_price","bid_amount"]
[1753042946122,0.90313,118140.0,118130.0,0.9800394]
[1753042946524,0.92062799,118140.0,118130.0,0.9800394]
[1753042947425,1.08984299,118140.0,118130.0,0.9800394]
[1753042948428,0.92062799,118140.0,118130.0,0.9800394]
[1753042949224,0.87521799,118140.0,118130.0,1.54247521]
[1753042949428,0.74547,118140.0,118130.0,1.23247521]
[1753042949628,0.74547,118140.0,118130.0,1.61247521]
[1753042949828,0.74547,118140.0,118130.0,1.23247521]
[1753042950523,0.7934,118140.0,118130.0,1.23247521]
[1753042952320,0.87729,118140.0,118130.0,1.23247521]
[1753042952519,0.9093,118140.0,118130.0,1.23247521]
[1753042953634,0.5485,118140.0,118130.0,1.23247521]
[1753042954319,0.46856,118140.0,118130.0,1.23247521]
[1753042954520,0.3961,118140.0,118130.0,1.59327521]
[1753042954723,0.38467,118140.0,118130.0,1.95327521]
[1753042955734,0.38467,118140.0,118130.0,1.23247521]
[1753042955931,0.38467,118140.0,118130.0,1.59327521]
[1753042956429,0.38467,118140.0,118130.0,1.95327521]
[1753042958033,0.38467,118140.0,118130.0,1.96192462]
[1753042959340,0.38467,118140.0,118130.0,2.25352462]
[1753042960037,0.38467,118140.0,118130.0,1.89352462]
[1753042960237,0.38467,118140.0,118130.0,2.25352462]
[1753042960832,0.38467,118140.0,118130.0,2.24487521]
[1753042961226,0.38467,118140.0,118130.0,2.25487521]
[1753042962238,0.38467,118140.0,118130.0,1.88487521]
[1753042962433,0.4326,118140.0,118130.0,1.88487521]
[1753042962633,0.51649,118140.0,118130.0,1.88487521]
[1753042963428,0.7177151,118140.0,118130.0,0.6776394]
[1753042963641,1.33095091,118140.0,118130.0,1.0876394]
[1753042963942,1.33095091,118140.0,118130.0,0.91841]
[1753042964150,1.33095091,118140.0,118130.0,0.59576]
[1753042964548,1.33095091,118140.0,118130.0,0.7649894]
[1753042965548,1.33095091,118140.0,118130.0,0.9143994]
[1753042965549,1.0785151,118140.0,118130.0,0.9143994]
[1753042965744,1.0785151,118140.0,118130.0,1.23189521]
[1753042965745,0.9093,118140.0,118130.0,1.23189521]
[1753042966544,0.92677394,118140.0,118130.0,1.23189521]
[1753042967253,0.92677469,118140.0,118130.0,1.23189521]
[1753042971552,0.56597469,118140.0,118130.0,1.23189521]
[1753042971957,0.56597469,118140.0,118130.0,1.60189521]
[1753042972257,0.56597469,118140.0,118130.0,1.23189521]
[1753042973957,0.73518979,118140.0,118130.0,1.23189521]
[1753042974758,0.73518979,118140.0,118130.0,0.9143994]
[1753042975854,1.3484256,118140.0,118130.0,0.2041394]
[1753042976059,1.3484256,118140.0,118130.0,0.7648694]
[1753042976360,1.3484256,118140.0,118130.0,0.7964794]
[1753042976959,1.3484256,118140.0,118130.0,0.8460694]
[1753042977754,1.3484256,118140.0,118130.0,0.7648694]
[1753042978161,1.3484256,118140.0,118130.0,0.1712294]
[1753042978363,1.3484256,118140.0,118130.0,0.002]
[1753042978662,1.3484256,118140.0,118130.0,0.5956]
[1753042979162,1.3484256,118140.0,118130.0,0.5456]
[1753042979563,1.3484256,118140.0,118130.0,0.7148294]
[1753042982265,1.09598979,118140.0,118130.0,0.9022394]
[1753042983462,1.3484256,118140.0,118130.0,0.9022394]
[1753042986766,1.3484256,118140.0,118130.0,0.8332194]
[1753042986967,1.3484256,118140.0,118130.0,0.5456]
[1753042989270,1.3484256,118140.0,118130.0,0.7148294]
[1753042989561,1.3484256,118140.0,118130.0,0.8332194]
[1753042989762,1.09598979,118140.0,118130.0,0.9022394]
[1753042992068,1.3484256,118140.0,118130.0,0.7148294]
[1753042992867,1.3484256,118140.0,118130.0,0.7586394]
[1753042993059,1.3484256,118140.0,118130.0,0.7836294]
[1753042993262,1.3484256,118140.0,118130.0,0.8332194]
[1753042994870,1.3484256,118140.0,118130.0,0.9022394]
[1753042998976,1.09598979,118140.0,118130.0,0.9022394]
[1753042999169,1.3484256,118140.0,118130.0,0.9022394]
[1753042999773,1.09598979,118140.0,118130.0,1.21698521]
[1753042999971,1.09598979,118140.0,118130.0,0.9645494]
[1753043000776,1.09598979,118140.0,118130.0,0.9022394]
[1753043003074,0.46998469,118140.0,118130.0,1.56698521]
[1753043003279,0.27047469,118140.0,118130.0,1.56698521]
[1753043003677,0.27047469,118140.0,118130.0,1.21698521]
[1753043003976,0.37406469,118140.0,118130.0,1.21698521]
[1753043004176,0.69027979,118140.0,118130.0,1.21698521]
[1753043004376,0.72649979,118140.0,118130.0,1.21698521]
[1753043009984,1.08729979,118140.0,118130.0,1.21698521]
[1753043010185,1.08729979,118140.0,118130.0,0.4189494]
[1753043010385,1.3397356,118140.0,118130.0,0.9497994]
[1753043010980,1.08729979,118140.0,118130.0,0.9497994]
[1753043012985,1.08729979,118140.0,118130.0,1.0092794]
[1753043013480,1.08729979,118140.0,118130.0,0.9497994]
[1753043014585,0.91808469,118140.0,118130.0,0.9497994]
[1753043014987,0.72649979,118140.0,118130.0,0.9497994]
[1753043015187,0.91808469,118140.0,118130.0,0.9497994]
[1753043015890,1.08729979,118140.0,118130.0,0.9497994]
[1753043016286,1.08729979,118140.0,118130.0,0.9496794]
[1753043017684,1.3397356,118140.0,118130.0,0.7744694]
[1753043018792,1.3397356,118140.0,118130.0,0.8294394]
[1753043018995,1.08729979,118140.0,118130.0,0.9472194]
[1753043020597,1.08729979,118140.0,118130.0,1.19965521]
[1753043020792,1.08729979,118140.0,118130.0,1.0047594]
[1753043021101,1.08729979,118140.0,118130.0,0.9472194]
[1753043023296,1.08729979,118140.0,118130.0,0.8045094]
[1753043023797,1.3397356,118140.0,118130.0,0.8294394]
[1753043023996,1.3397356,118140.0,118130.0,0.8783594]
[1753043031214,1.3397356,118140.0,118130.0,0.9472194]
[1753043036017,1.08729979,118140.0,118130.0,0.9472194]
[1753043036218,1.3397356,118140.0,118130.0,0.9472194]
[1753043040016,1.08729979,118140.0,118130.0,0.9472194]
[1753043042023,1.3397356,118140.0,118130.0,0.9472194]
[1753043042325,1.3397356,118140.0,118130.0,0.8783594]
[1753043043225,1.08729979,118140.0,118130.0,0.8294394]
[1753043043428,1.3397356,118140.0,118130.0,0.8045094]
[1753043044326,1.3397356,118140.0,118130.0,0.8291694]
[1753043044726,1.3397356,118140.0,118120.0,0.52757965]
[1753043044727,0.4216194,118130.0,118120.0,0.2989318]
[1753043044919,1.3257299,118130.0,118120.0,0.8901218]
[1753043046028,1.07529409,118130.0,118120.0,0.9608618]
[1753043046325,1.07529409,118130.0,118120.0,1.0257118]
[1753043046826,1.07529409,118130.0,118120.0,1.0815618]
[1753043047322,1.07629409,118130.0,118120.0,1.0267118]
[1753043050329,1.08473208,118130.0,118120.0,1.0267118]
[1753043050728,1.07629409,118130.0,118120.0,1.0267118]
[1753043052227,1.0588194,118130.0,118120.0,1.0267118]
[1753043053329,1.0588194,118130.0,118120.0,1.27914761]
[1753043053929,0.41438,118130.0,118120.0,1.71499761]
[1753043054125,0.15894,118130.0,118120.0,1.96743342]
[1753043054427,0.15894,118130.0,118120.0,1.71499761]
[1753043054933,0.09894,118130.0,118120.0,1.4625618]
[1753043055130,0.47265,118130.0,118120.0,1.71499761]
[1753043059935,0.35894,118130.0,118120.0,1.71499761]
[1753043060527,0.19894,118130.0,118120.0,2.07579761]
[1753043060730,0.103,118130.0,118120.0,2.32823342]
[1753043065044,0.103,118130.0,118120.0,2.38905496]
[1753043065841,0.103,118130.0,118120.0,2.68065496]
[1753043066634,0.103,118130.0,118120.0,2.61983342]
[1753043068036,0.103,118130.0,118120.0,2.1149618]
[1753043068242,0.40084,118130.0,118120.0,2.36739761]
[1753043070538,0.41794327,118130.0,118120.0,1.1425218]
[1753043070735,0.46635327,118130.0,118120.0,1.98667761]
[1753043071744,0.53265327,118130.0,118120.0,1.98667761]
[1753043072437,0.56587327,118130.0,118120.0,1.1425218]
[1753043072638,1.13188267,118130.0,118120.0,0.7258718]
[1753043072835,0.96265327,118130.0,118120.0,1.3175518]
[1753043073439,0.96265327,118130.0,118120.0,1.3698318]
[1753043073933,0.96265327,118130.0,118120.0,1.62226761]
[1753043074335,0.60185327,118130.0,118120.0,1.62226761]
[1753043075047,0.96265327,118130.0,118120.0,1.62226761]
[1753043075640,0.63840327,118130.0,118120.0,1.62226761]
[1753043075844,0.49874327,118130.0,118120.0,1.99226761]
[1753043076039,0.13794327,118130.0,118120.0,1.99226761]
[1753043076437,0.13794327,118130.0,118120.0,2.35306761]
[1753043076646,0.04010327,118130.0,118120.0,2.41398907]
[1753043077737,0.04010327,118130.0,118120.0,2.12238907]
[1753043078735,0.28010327,118130.0,118120.0,1.75238907]
[1753043078941,0.37794327,118130.0,118120.0,1.75238907]
[1753043079450,0.37794327,118130.0,118120.0,1.39158907]
[1753043080043,0.11794327,118130.0,118120.0,1.74158907]
[1753043080549,0.11794327,118130.0,118120.0,2.10238907]
[1753043082643,0.38794327,118130.0,118120.0,1.75238907]
[1753043082838,0.57185327,118130.0,118120.0,1.75238907]
[1753043085142,0.93265327,118130.0,118120.0,1.39158907]
[1753043086148,0.93265327,118130.0,118120.0,1.77158907]
[1753043086949,0.57185327,118130.0,118120.0,1.77158907]
[1753043087651,0.57185327,118130.0,118120.0,1.39158907]
[1753043088050,0.57185327,118130.0,118120.0,1.70158907]
[1753043088243,0.57185327,118130.0,118120.0,1.39158907]
[1753043088747,0.54760327,118130.0,118120.0,1.39158907]
[1753043088947,0.53587327,118130.0,118120.0,1.74158907]
[1753043089956,0.89667327,118130.0,118120.0,1.39158907]
[1753043090251,0.53587327,118130.0,118120.0,1.39158907]
[1753043090556,0.53587327,118130.0,118120.0,1.74158907]
[1753043091652,0.53587327,118130.0,118120.0,1.39158907]
[1753043092351,0.52587327,118130.0,118120.0,1.39158907]
[1753043093751,0.52587327,118130.0,118120.0,1.73158907]
[1753043093954,0.52587327,118130.0,118120.0,1.39158907]
[1753043094455,0.52587327,118130.0,118120.0,1.76158907]
[1753043095048,0.52587327,118130.0,118120.0,1.75238907]
[1753043095347,0.53777327,118130.0,118120.0,1.39158907]
[1753043095557,0.56073327,118130.0,118120.0,1.39158907]
[1753043095754,0.56073327,118130.0,118120.0,1.75238907]
[1753043097953,0.54363,118130.0,118120.0,1.75238907]
[1753043098254,0.28363,118130.0,118120.0,1.39158907]
[1753043098556,0.37363,118130.0,118120.0,1.74158907]
[1753043098948,0.37363,118130.0,118120.0,1.75238907]
[1753043099152,0.28363,118130.0,118120.0,1.75238907]
[1753043099357,0.37363,118130.0,118120.0,2.06238907]
[1753043099862,0.37363,118130.0,118120.0,1.70158907]
[1753043100069,0.28363,118130.0,118120.0,1.39158907]
[1753043100366,0.55363,118130.0,118120.0,1.39158907]
[1753043100762,0.91443,118130.0,118120.0,1.33930907]
[1753043101263,0.91443,118130.0,118120.0,1.38807907]
[1753043101463,0.91443,118130.0,118120.0,1.33930907]
[1753043101669,0.55363,118130.0,118120.0,1.33930907]
[1753043101863,0.91443,118130.0,118120.0,1.33930907]
[1753043102463,0.55363,118130.0,118120.0,1.33930907]
[1753043104466,0.55363,118130.0,118120.0,1.38807907]
[1753043106667,0.55363,118130.0,118120.0,1.33930907]
[1753043108367,0.55363,118130.0,118120.0,1.38807907]
[1753043109367,0.91443,118130.0,118120.0,1.38807907]
[1753043109968,0.55363,118130.0,118120.0,1.38807907]
[1753043111871,0.29363,118130.0,118120.0,1.74807907]
[1753043113176,0.29363,118130.0,118120.0,1.87495408]
[1753043114371,0.53363,118130.0,118120.0,1.87495408]
[1753043116364,0.003,118130.0,118120.0,2.06540949]
[1753043116675,0.003,118130.0,118120.0,2.38540949]
[1753043116874,0.003,118130.0,118120.0,2.19575408]
[1753043117074,0.58873256,118150.0,118140.0,0.3944151]
[1753043117278,0.88615223,118150.0,118140.0,1.36440592]
[1753043117575,0.94053223,118150.0,118140.0,1.36440592]
[1753043117766,0.95243223,118150.0,118140.0,1.36440592]
[1753043118373,0.95243223,118150.0,118140.0,1.36540592]
[1753043118374,0.95643223,118150.0,118140.0,1.36540592]
[1753043118873,0.95943223,118150.0,118140.0,1.36640592]
[1753043119178,0.95943223,118150.0,118140.0,1.23990144]
[1753043119477,0.93647223,118150.0,118140.0,1.23990144]
[1753043120873,0.93647223,118150.0,118140.0,0.99541891]
[1753043121071,0.95943223,118150.0,118140.0,1.23990144]
[1753043121476,0.95943223,118150.0,118140.0,0.9870951]
[1753043121678,0.95943223,118150.0,118140.0,1.23990144]
[1753043123681,0.95943223,118150.0,118140.0,0.9870951]
[1753043123983,0.95943223,118150.0,118140.0,1.23990144]
[1753043130181,0.95943223,118150.0,118140.0,1.54990144]
[1753043130382,0.93647223,118150.0,118140.0,1.58990144]
[1753043130581,0.87480223,118150.0,118140.0,1.56990144]
[1753043130885,0.82596256,118150.0,118140.0,1.61990144]
[1753043131683,0.14381256,118150.0,118140.0,2.27230144]
[1753043132385,0.09865,118160.0,118150.0,0.1692009]
[1753043132682,0.52965,118170.0,118160.0,0.2349566]
[1753043132880,0.5299622,118170.0,118160.0,1.44800294]
[1753043133080,0.5738522,118170.0,118160.0,1.43800294]
[1753043133376,0.5738522,118170.0,118160.0,1.41800294]
[1753043133573,0.5738522,118170.0,118160.0,1.43800294]
[1753043133780,0.5738522,118170.0,118160.0,1.39800294]
[1753043133986,0.5738522,118170.0,118160.0,1.07800294]
[1753043134685,0.5738522,118170.0,118160.0,1.07200294]
[1753043134880,0.5738522,118170.0,118160.0,1.44200294]
[1753043135086,0.5738522,118170.0,118160.0,1.07400294]
[1753043135286,0.55645,118170.0,118160.0,1.07400294]
[1753043135484,0.55645,118170.0,118160.0,1.42400294]
[1753043135681,0.44885,118170.0,118160.0,1.42400294]
[1753043136188,0.44885,118170.0,118160.0,3.13880928]
[1753043137787,0.44885,118170.0,118160.0,2.95266793]
[1753043142400,0.44885,118170.0,118160.0,3.31346793]
[1753043142693,0.44885,118170.0,118160.0,3.06066159]
[1753043142887,0.44885,118170.0,118160.0,2.95266793]
[1753043144894,0.55645,118170.0,118160.0,2.95266793]
[1753043146190,0.55645,118170.0,118160.0,2.60266793]
[1753043146395,0.55645,118170.0,118160.0,1.72418159]
[1753043146586,1.0864223,118170.0,118160.0,2.31402159]
[1753043146786,1.33922864,118170.0,118160.0,2.31402159]
[1753043147395,1.0864223,118170.0,118160.0,2.31402159]
[1753043148293,1.0864223,118170.0,118160.0,2.2473566]
[1753043149192,0.91725,118170.0,118160.0,2.50016294]
[1753043151585,0.91725,118170.0,118160.0,2.20856294]
[1753043152000,0.91725,118170.0,118160.0,1.9557566]
[1753043152296,0.91725,118170.0,118160.0,2.20856294]
[1753043153299,1.0864225,118170.0,118160.0,2.20856294]
[1753043155394,1.0864225,118170.0,118160.0,1.9557566]
[1753043156489,1.10377508,118170.0,118160.0,1.9557566]
[1753043162404,1.10377508,118170.0,118160.0,2.20856294]
[1753043163304,1.10377508,118170.0,118160.0,1.9557566]
[1753043163506,1.10377508,118170.0,118160.0,2.20856294]
[1753043163808,1.10377508,118170.0,118160.0,1.9557566]
[1753043167910,1.10377508,118170.0,118160.0,2.23800294]
[1753043167911,0.82700258,118170.0,118160.0,2.23800294]
[1753043168119,0.82700258,118170.0,118160.0,2.87080928]
[1753043168120,0.28,118170.0,118160.0,2.87080928]
[1753043168411,0.28,118170.0,118160.0,3.16240928]
[1753043168807,0.28,118170.0,118160.0,2.78240928]
[1753043169106,0.28,118170.0,118160.0,3.52131714]
[1753043169313,0.15742918,118180.0,118170.0,0.2300125]
[1753043169512,0.47207918,118180.0,118170.0,0.84361884]
[1753043170515,0.47307918,118180.0,118170.0,0.84361884]
[1753043171508,0.30823918,118180.0,118170.0,1.18561884]
[1753043171712,0.30823918,118180.0,118170.0,1.2465403]
[1753043172413,0.30823918,118180.0,118170.0,1.5381403]
[1753043172617,0.01823918,118180.0,118170.0,1.5381403]
[1753043172922,0.07723918,118180.0,118170.0,1.5381403]
[1753043173223,0.07723918,118180.0,118170.0,1.47721884]
[1753043173514,0.06,118180.0,118170.0,0.8844125]
[1753043173716,0.41484,118180.0,118170.0,1.85349254]
[1753043173918,0.41484,118180.0,118170.0,0.37751476]
[1753043174118,1.0516782,118180.0,118170.0,0.3165933]
[1753043174322,1.0516782,118180.0,118170.0,0.87985547]
[1753043174814,1.30448454,118180.0,118170.0,0.07899297]
[1753043175019,1.30448454,118180.0,118170.0,0.63695297]
[1753043175421,1.30448454,118180.0,118170.0,0.59136]
[1753043176319,1.30548454,118180.0,118170.0,0.59136]
[1753043176520,1.30548454,118180.0,118170.0,0.7605325]
[1753043177115,1.0526782,118180.0,118170.0,0.7605325]
[1753043177310,1.30548454,118180.0,118170.0,0.7605325]
[1753043177622,1.32272413,118180.0,118170.0,0.7605325]
[1753043178421,1.32272413,118180.0,118170.0,0.7585325]
[1753043179725,1.06991779,118180.0,118170.0,0.7585325]
[1753043180024,1.32272413,118180.0,118170.0,0.7585325]
[1753043188618,1.32272413,118180.0,118160.0,1.1704]
[1753043188619,0.1691725,118170.0,118160.0,1.1704]
[1753043188821,0.4330068,118160.0,118150.0,0.04559297]
[1753043189122,1.34661314,118160.0,118150.0,0.80411407]
[1753043189323,1.34661314,118160.0,118150.0,0.7585211]
[1753043189929,0.2116911,118150.0,118140.0,0.57878267]
[1753043190124,1.0638211,118150.0,118140.0,0.87650267]
[1753043190428,1.0638211,118150.0,118140.0,0.8309097]
[1753043190729,1.0638211,118150.0,118140.0,1.08371604]
[1753043190930,1.0638211,118150.0,118140.0,0.8309097]
[1753043191922,1.0638211,118150.0,118140.0,0.8623497]
[1753043192122,1.0648211,118150.0,118140.0,0.8663497]
[1753043193024,1.0648211,118150.0,118140.0,0.8240472]
[1753043194032,1.0648211,118150.0,118140.0,1.07685354]
[1753043194528,1.0648211,118150.0,118140.0,0.7946072]
[1753043203736,1.0648211,118150.0,118140.0,1.04741354]
[1753043204531,1.0648211,118150.0,118140.0,0.7946072]
[1753043206138,1.0648211,118150.0,118140.0,0.8240472]
[1753043207142,1.0648211,118150.0,118140.0,0.7946072]
[1753043207436,1.08224836,118150.0,118140.0,0.7946072]
[1753043208037,1.08224836,118150.0,118140.0,0.8240472]
[1753043208242,1.08224836,118150.0,118140.0,1.07685354]
[1753043208538,1.0648211,118150.0,118140.0,1.07685354]
[1753043210038,1.0648211,118150.0,118140.0,0.8240472]
[1753043210235,1.0648211,118150.0,118140.0,1.07685354]
[1753043211235,0.14274,118150.0,118140.0,1.77765354]
[1753043211541,0.09274,118150.0,118140.0,1.45685354]
[1753043212230,0.38274,118150.0,118140.0,1.45685354]
[1753043212429,0.09274,118150.0,118140.0,1.07685354]
[1753043212636,0.14044,118150.0,118140.0,1.07685354]
[1753043213739,0.14044,118150.0,118140.0,1.72925354]
[1753043214036,0.14044,118150.0,118140.0,1.36845354]
[1753043214339,0.14044,118150.0,118140.0,1.72925354]
[1753043214741,0.14044,118150.0,118140.0,2.09925354]
[1753043214939,0.14044,118150.0,118140.0,1.67845354]
[1753043215138,0.14044,118150.0,118140.0,2.10925354]
[1753043215639,0.14044,118150.0,118140.0,1.72925354]
[1753043216040,0.14044,118150.0,118140.0,2.03925354]
[1753043216341,0.14044,118150.0,118140.0,1.72925354]
[1753043216843,0.14044,118150.0,118140.0,2.06925354]
[1753043217234,0.001,118150.0,118140.0,2.06925354]
[1753043217746,0.08589,118160.0,118150.0,0.1692009]
[1753043218044,0.20589,118160.0,118150.0,1.18446724]
[1753043218636,0.12,118160.0,118150.0,1.47606724]
[1753043218837,0.12,118160.0,118150.0,1.47706724]
[1753043220144,0.20589,118160.0,118150.0,2.04610724]
[1753043221038,0.20589,118160.0,118150.0,2.1070287]
[1753043221347,0.20589,118160.0,118150.0,2.1080287]
[1753043221739,0.20589,118160.0,118150.0,2.04710724]
[1753043222034,0.20589,118160.0,118150.0,2.04910724]
[1753043222441,0.20589,118160.0,118150.0,1.7973009]
[1753043222642,0.20589,118160.0,118150.0,2.05010724]
[1753043223247,0.20589,118160.0,118150.0,1.14106724]
[1753043223449,0.20589,118160.0,118150.0,2.09002724]
[1753043223948,0.25524,118160.0,118150.0,2.09002724]
[1753043224543,0.20589,118160.0,118150.0,2.09002724]
[1753043225151,0.25524,118160.0,118150.0,2.09002724]
[1753043225546,0.25524,118160.0,118150.0,1.72922724]
[1753043225750,0.25524,118160.0,118150.0,2.09002724]
[1753043225945,0.27818,118160.0,118150.0,2.09002724]
[1753043226650,0.27818,118160.0,118150.0,3.26030724]
[1753043230152,0.27818,118160.0,118150.0,2.67134724]
[1753043230353,0.27818,118160.0,118150.0,3.26018724]
[1753043232852,0.27818,118160.0,118150.0,3.3211087]
[1753043233051,0.27818,118160.0,118150.0,3.26018724]
[1753043234250,0.27818,118160.0,118150.0,3.3211087]
[1753043234448,0.38174,118160.0,118150.0,2.31134724]
[1753043234649,0.38174,118160.0,118150.0,2.51082724]
[1753043234650,0.45174,118160.0,118150.0,2.51082724]
[1753043236047,0.45174,118160.0,118150.0,2.2580209]
[1753043236554,0.81254,118160.0,118150.0,2.51082724]
[1753043236751,0.81254,118160.0,118150.0,2.50982724]
[1753043238253,0.81254,118160.0,118150.0,2.50782724]
[1753043238763,0.81254,118160.0,118150.0,1.6663009]
[1753043239050,0.9817267,118160.0,118150.0,2.50778724]
[1753043239247,0.99895567,118160.0,118150.0,2.50778724]
[1753043239754,0.82976897,118160.0,118150.0,2.50778724]
[1753043240453,0.82976897,118160.0,118150.0,1.9633809]
[1753043240957,0.82976897,118160.0,118150.0,0.7931009]
[1753043242365,0.99895557,118160.0,118150.0,0.7931009]
[1753043242546,1.25176191,118160.0,118150.0,0.7598809]
[1753043243062,1.26920342,118160.0,118150.0,0.7598809]
[1753043243958,1.01639708,118160.0,118150.0,0.7598809]
[1753043244757,1.01639419,118160.0,118150.0,0.7598809]
[1753043246659,0.99895557,118160.0,118150.0,0.7598809]
[1753043250453,1.25176191,118160.0,118150.0,0.7598809]
[1753043250959,0.99895557,118160.0,118150.0,0.7598809]
[1753043252562,1.25176191,118160.0,118150.0,0.7598809]
[1753043256462,0.99895557,118160.0,118150.0,0.7598809]
[1753043256662,1.26919689,118160.0,118150.0,0.7598809]
[1753043259263,1.39564147,118160.0,118150.0,0.7598809]
[1753043265068,1.39564147,118160.0,118150.0,0.59068]
[1753043265667,1.39564147,118160.0,118150.0,0.759881]
[1753043267870,1.39564147,118160.0,118150.0,0.002]
[1753043268070,1.39564147,118160.0,118150.0,0.59016]
[1753043272263,1.39564147,118160.0,118150.0,0.7593609]
[1753043272974,1.01639055,118160.0,118150.0,0.7593609]
[1753043273173,1.39564147,118160.0,118150.0,0.7593609]
[1753043274277,1.39564147,118160.0,118150.0,0.59016]
[1753043274577,1.39564147,118160.0,118150.0,0.759361]
[1753043277177,1.39564147,118160.0,118150.0,0.59016]
[1753043277583,0.4300253,118140.0,118130.0,1.381763]
[1753043277875,1.8183112,118140.0,118130.0,1.7582]
[1753043278172,1.8183112,118140.0,118130.0,1.17024]
[1753043278377,1.8183112,118140.0,118130.0,1.9274296]
[1753043278578,1.82665842,118140.0,118130.0,1.9274296]
[1753043278778,1.82665842,118140.0,118130.0,1.9304296]
[1753043278978,1.82665842,118140.0,118130.0,1.9344296]
[1753043280480,1.4474075,118140.0,118130.0,1.9344296]
[1753043280668,1.82665842,118140.0,118130.0,1.9344296]
[1753043281579,1.4474075,118140.0,118130.0,1.9344296]
[1753043281785,1.82665842,118140.0,118130.0,1.9344296]
[1753043283081,1.4474075,118140.0,118130.0,1.9344296]
[1753043283383,1.82665842,118140.0,118130.0,1.9344296]
[1753043286483,1.43906028,118140.0,118130.0,2.15249506]
[1753043286683,0.97391028,118140.0,118130.0,2.15249506]
[1753043287077,1.07826028,118140.0,118130.0,2.15249506]
[1753043288784,1.26788574,118140.0,118130.0,2.15249506]
[1753043289285,1.07826028,118140.0,118130.0,2.21573521]
[1753043290286,1.07826028,118140.0,118130.0,1.9628696]
[1753043291992,1.07826028,118140.0,118130.0,2.21573521]
[1753043292986,1.07826028,118140.0,118130.0,1.9628696]
[1753043293686,1.07826028,118140.0,118130.0,0.8257096]
[1753043295090,1.43906028,118140.0,118130.0,1.07857521]
[1753043296490,1.43906028,118140.0,118130.0,0.8257096]
[1753043297687,1.69192589,118140.0,118130.0,0.2093096]
[1753043297891,1.69192589,118140.0,118130.0,0.7970296]
[1753043298984,1.43906028,118140.0,118130.0,0.7970296]
[1753043299284,1.69192589,118140.0,118130.0,0.7970296]
[1753043300591,1.43906028,118140.0,118130.0,0.8254696]
[1753043304690,1.4560285,118140.0,118130.0,1.07833521]
[1753043304884,1.4560285,118140.0,118130.0,0.8254696]
[1753043305081,1.4560285,118140.0,118130.0,0.7970296]
[1753043305290,1.43859352,118140.0,118130.0,0.7970296]
[1753043305484,1.69145913,118140.0,118130.0,0.7970296]
[1753043305691,1.70885042,118140.0,118130.0,0.7970296]
[1753043309296,1.83533211,118140.0,118130.0,0.98670325]
[1753043309792,1.47453211,118140.0,118130.0,0.98670325]
[1753043310193,1.47453211,118140.0,118130.0,0.7970296]
[1753043310393,1.47453211,118140.0,118130.0,0.98670325]
[1753043311599,1.28485846,118140.0,118130.0,0.98670325]
[1753043311998,1.47453211,118140.0,118130.0,0.98670325]
[1753043316501,1.28485846,118140.0,118130.0,0.98670325]
[1753043317502,1.28485846,118140.0,118130.0,0.7970296]
[1753043317803,1.28485846,118140.0,118130.0,0.98670325]
[1753043319804,1.28485846,118140.0,118130.0,1.01514325]
[1753043320904,1.28485846,118140.0,118130.0,0.8254696]
[1753043321304,1.28485846,118140.0,118130.0,1.01514325]
[1753043323506,1.28485846,118140.0,118130.0,0.8254696]
[1753043323805,1.28485846,118140.0,118130.0,1.01514325]
[1753043324404,1.28485846,118140.0,118130.0,0.98670325]
[1753043324808,1.09518481,118140.0,118130.0,0.98670325]
[1753043325009,1.28485846,118140.0,118130.0,0.98670325]
[1753043335316,1.28485846,118140.0,118130.0,1.01514325]
[1753043337421,1.28485846,118140.0,118130.0,0.98670325]
[1753043339226,1.28485846,118140.0,118130.0,0.7970296]
[1753043339522,1.28485846,118140.0,118130.0,0.98670325]
[1753043340123,1.28485846,118140.0,118130.0,0.7970296]
[1753043340324,1.28485846,118140.0,118130.0,0.98670325]
[1753043341321,1.28485846,118140.0,118130.0,0.7970296]
[1753043341521,1.47453211,118140.0,118130.0,0.98670325]
[1753043341923,1.47453211,118140.0,118130.0,0.7970296]
[1753043342119,1.47453211,118140.0,118130.0,0.98670325]
[1753043342822,1.28485846,118140.0,118130.0,0.98670325]
[1753043343626,1.09518481,118140.0,118130.0,0.98670325]
[1753043343923,1.28485846,118140.0,118130.0,0.98670325]
[1753043344325,1.11564316,118140.0,118130.0,1.01514325]
[1753043344825,0.82161951,118140.0,118130.0,1.2048169]
[1753043345013,0.46081951,118140.0,118130.0,1.25053879]
[1753043345219,0.27,118140.0,118130.0,1.9741129]
[1753043345414,0.27,118140.0,118130.0,2.3349129]
[1753043345628,0.76274457,118160.0,118150.0,0.169201]
[1753043345828,1.05008029,118160.0,118150.0,0.99152682]
[1753043346325,1.05008029,118160.0,118150.0,0.94583465]
[1753043346522,1.05008029,118160.0,118150.0,0.99152682]
[1753043346721,1.05008029,118160.0,118150.0,0.94583465]
[1753043346922,1.05008029,118160.0,118150.0,0.94683465]
[1753043347122,1.23975394,118160.0,118150.0,0.94683465]
[1753043350129,1.23975394,118160.0,118150.0,0.94675465]
[1753043350430,1.40894054,118160.0,118150.0,0.94675465]
[1753043350927,1.59861419,118160.0,118150.0,0.757041]
[1753043352130,1.40894054,118160.0,118150.0,0.94671465]
[1753043352633,1.59861419,118160.0,118150.0,0.94671465]
[1753043352930,1.40894054,118160.0,118150.0,0.94671465]
[1753043355725,1.23975394,118160.0,118150.0,0.94671465]
[1753043355931,1.05008029,118160.0,118150.0,0.94671465]
[1753043356631,1.03274457,118160.0,118150.0,0.94671465]
[1753043357127,1.13367457,118160.0,118150.0,0.94671465]
[1753043358028,0.77287457,118160.0,118150.0,0.94671465]
[1753043358332,1.13367457,118160.0,118150.0,0.94671465]
[1753043359928,0.7556456,118160.0,118150.0,0.94671465]
[1753043360134,0.70388288,118160.0,118150.0,1.1363883]
[1753043360330,0.70388288,118160.0,118150.0,0.94671465]
[1753043360536,0.70388288,118160.0,118150.0,1.30751465]
[1753043361129,0.70388288,118160.0,118150.0,1.37057642]
[1753043361329,0.67210288,118160.0,118150.0,1.37057642]
[1753043361531,0.67210288,118160.0,118150.0,1.41626859]
[1753043361724,0.64769288,118160.0,118150.0,1.41626859]
[1753043361929,0.64769288,118160.0,118150.0,1.78626859]
[1753043362638,0.67210288,118160.0,118150.0,1.78626859]
[1753043364731,0.67210288,118160.0,118150.0,2.07786859]
[1753043366038,0.67210288,118160.0,118150.0,1.82513317]
[1753043366230,0.67210288,118160.0,118150.0,2.07786859]
[1753043366432,0.67210288,118160.0,118150.0,1.71706859]
[1753043366635,0.67210288,118160.0,118150.0,2.07786859]
[1753043368432,0.64769288,118160.0,118150.0,2.24714059]
[1753043370342,0.64769288,118160.0,118150.0,2.07786859]
[1753043370537,0.64769288,118160.0,118150.0,2.24714059]
[1753043370733,0.42186728,118160.0,118150.0,2.24714059]
[1753043371041,0.44542728,118160.0,118150.0,2.24714059]
[1753043371639,0.44542728,118160.0,118150.0,2.07786859]
[1753043372040,0.42804,118160.0,118150.0,2.07786859]
[1753043372239,0.40448,118160.0,118150.0,2.07786859]